bitfinex-derivatives/quotes_BTCF0:USTF0_20250411
["timestamp","ask_amount","ask_price","bid_price","bid_amount"]
[1744370574145,0.2445928,82561.0,82560.0,0.0605971]
[1744370574649,0.1817928,82560.0,82559.0,0.1211951]
[1744370574840,0.1816928,82560.0,82559.0,0.1211951]
[1744370575041,0.1227971,82560.0,82559.0,0.1211951]
[1744370575550,0.1228371,82560.0,82559.0,0.1211951]
[1744370575742,0.1227371,82560.0,82559.0,0.1211951]
[1744370575945,0.1227371,82560.0,82559.0,0.1527951]
[1744370576451,0.1226371,82560.0,82559.0,0.1838951]
[1744370577248,0.1225371,82560.0,82559.0,0.1838951]
[1744370577644,0.1224371,82560.0,82559.0,0.1838951]
[1744370578251,0.1224371,82560.0,82559.0,0.1527951]
[1744370578445,0.1223371,82560.0,82559.0,0.0316]
[1744370578645,0.1211972,82558.0,82557.0,0.1211974]
[1744370579051,0.1826972,82558.0,82557.0,0.1211974]
[1744370579252,0.1826972,82558.0,82557.0,0.1520974]
[1744370579653,0.1826972,82558.0,82557.0,0.1211974]
[1744370579841,0.1825972,82558.0,82557.0,0.1211974]
[1744370580656,0.1824972,82558.0,82557.0,0.1211974]
[1744370581152,0.1823972,82558.0,82557.0,0.1211974]
[1744370581752,0.1822972,82558.0,82557.0,0.1211974]
[1744370582353,0.1821972,82558.0,82557.0,0.1211974]
[1744370582852,0.1820972,82558.0,82557.0,0.1211974]
[1744370583052,0.5428972,82558.0,82557.0,0.1211974]
[1744370583554,0.5427972,82558.0,82557.0,0.1211974]
[1744370583851,0.4224,82558.0,82557.0,0.1211974]
[1744370584043,0.45123127,82558.0,82557.0,0.1211974]
[1744370584243,0.45117127,82558.0,82557.0,0.1850974]
[1744370584643,0.45113127,82558.0,82557.0,0.1850974]
[1744370584840,0.45107127,82558.0,82557.0,0.1850974]
[1744370585145,0.09027127,82558.0,82557.0,0.1850974]
[1744370585350,0.09017127,82558.0,82557.0,0.1850974]
[1744370586149,0.09007127,82558.0,82557.0,0.1850974]
[1744370586947,0.08997127,82558.0,82557.0,0.1850974]
[1744370587442,0.21106847,82558.0,82557.0,0.1850974]
[1744370587648,0.57186847,82558.0,82557.0,0.1850974]
[1744370588153,0.57176847,82558.0,82557.0,0.1850974]
[1744370588756,0.08977127,82558.0,82557.0,0.1850974]
[1744370588960,0.08967127,82558.0,82557.0,0.1850974]
[1744370589145,0.1212001,82556.0,82555.0,0.12168612]
[1744370589549,0.1513001,82556.0,82555.0,0.12168612]
[1744370589854,0.1512001,82556.0,82555.0,0.00048452]
[1744370590054,0.1512001,82556.0,82555.0,0.12168612]
[1744370590754,0.1511001,82556.0,82555.0,0.12168612]
[1744370591460,0.1510001,82556.0,82555.0,0.12168612]
[1744370591649,0.1510001,82556.0,82555.0,0.00048452]
[1744370592158,0.1509001,82556.0,82555.0,0.12168612]
[1744370592354,0.1833001,82556.0,82555.0,0.12168612]
[1744370592757,0.1832001,82556.0,82555.0,0.12168612]
[1744370592962,0.24213137,82556.0,82555.0,0.12168612]
[1744370593457,0.24203137,82556.0,82555.0,0.12168612]
[1744370594261,0.24193137,82556.0,82555.0,0.12168612]
[1744370594660,0.24183137,82556.0,82555.0,0.12168612]
[1744370595165,0.12143127,82556.0,82555.0,0.12168612]
[1744370595364,0.2441933,82556.0,82555.0,0.18388612]
[1744370595955,0.2440933,82556.0,82555.0,0.18388612]
[1744370596458,0.2439933,82556.0,82555.0,0.18388612]
[1744370597162,0.2439333,82556.0,82555.0,0.18388612]
[1744370597863,0.2438333,82556.0,82555.0,0.18388612]
[1744370598364,0.2437333,82556.0,82555.0,0.18388612]
[1744370599060,0.2436333,82556.0,82555.0,0.18388612]
[1744370599465,0.2435333,82556.0,82555.0,0.18388612]
[1744370600067,0.2434333,82556.0,82555.0,0.18388612]
[1744370600466,0.2433333,82556.0,82555.0,0.18388612]
[1744370601060,0.2432333,82556.0,82555.0,0.18388612]
[1744370601766,0.2431333,82556.0,82555.0,0.18388612]
[1744370602163,0.1218332,82556.0,82555.0,0.18388612]
[1744370602469,0.1639557,82559.0,82558.0,0.1211972]
[1744370602665,0.20249706,82569.0,82568.0,0.1211825]
[1744370602860,0.19026025,82569.0,82568.0,0.1211825]
[1744370603257,0.19020025,82569.0,82568.0,0.1870825]
[1744370603973,0.19010025,82569.0,82568.0,0.1870825]
[1744370604661,0.22240025,82569.0,82568.0,0.1870825]
[1744370605165,0.22230025,82569.0,82568.0,0.1870825]
[1744370605463,0.03244,82569.0,82568.0,0.1870825]
[1744370606065,0.03234,82569.0,82568.0,0.1870825]
[1744370606366,0.185121,82569.0,82568.0,0.1870825]
[1744370606761,0.185021,82569.0,82568.0,0.1870825]
[1744370606962,0.03224,82569.0,82568.0,0.1870825]
[1744370607360,0.03214,82569.0,82568.0,0.1870825]
[1744370607765,0.18019146,82571.0,82570.0,0.1211796]
[1744370607961,0.11707546,82571.0,82570.0,0.1211796]
[1744370608165,0.00011926,82574.0,82573.0,0.1211752]
[1744370608574,0.00011926,82574.0,82573.0,0.1856752]
[1744370608774,5.926e-05,82574.0,82573.0,0.1856752]
[1744370608977,1.926e-05,82574.0,82573.0,0.1856752]
[1744370609276,5.926e-05,82574.0,82573.0,0.1856752]
[1744370609476,0.03075926,82576.0,82575.0,0.1211722]
[1744370609883,0.03075926,82576.0,82575.0,0.1525722]
[1744370610176,0.15183006,82576.0,82575.0,0.1525722]
[1744370610472,0.21622976,82577.0,82576.0,0.1211708]
[1744370610692,0.21612976,82577.0,82576.0,0.1525708]
[1744370610976,0.21616976,82577.0,82576.0,0.1842708]
[1744370611274,0.21606976,82577.0,82576.0,0.1842708]
[1744370611974,0.21596976,82577.0,82576.0,0.1842708]
[1744370612379,4e-05,82577.0,82576.0,0.1842708]
[1744370612675,0.1211657,82580.0,82579.0,0.181748]
[1744370613171,0.03064,82581.0,82580.0,0.1211649]
[1744370613373,0.1211634,82581.0,82580.0,0.0605824]
[1744370613675,0.1210634,82581.0,82580.0,0.0605824]
[1744370614172,0.1209634,82581.0,82580.0,0.0605824]
[1744370614574,0.1509634,82581.0,82580.0,0.0605824]
[1744370614977,0.1508634,82581.0,82580.0,0.0605824]
[1744370616175,0.1840634,82581.0,82580.0,0.0605824]
[1744370616772,0.1839634,82581.0,82580.0,0.0605824]
[1744370616970,0.5452634,82581.0,82580.0,0.0605824]
[1744370617378,0.4241,82581.0,82580.0,0.0605824]
[1744370617578,0.424,82581.0,82580.0,0.0916824]
[1744370617974,0.0333,82581.0,82580.0,0.1233824]
[1744370618374,0.03324,82581.0,82580.0,0.1233824]
[1744370618577,0.0332,82581.0,82580.0,0.1233824]
[1744370618774,0.03324,82581.0,82580.0,0.1233824]
[1744370619170,4e-05,82581.0,82580.0,0.1233824]
[1744370619573,0.3608,82588.0,82587.0,0.1211546]
[1744370619975,0.3608,82588.0,82587.0,0.1831546]
[1744370620371,0.36084,82588.0,82587.0,0.1831546]
[1744370621077,0.36074,82588.0,82587.0,0.1831546]
[1744370621478,0.36064,82588.0,82587.0,0.1831546]
[1744370621779,4e-05,82588.0,82587.0,0.5439546]
[1744370622175,0.0327,82600.0,82599.0,0.121137]
[1744370622374,0.03277291,82600.0,82599.0,0.121137]
[1744370622574,0.0327,82600.0,82599.0,0.153137]
[1744370622886,0.03264,82600.0,82599.0,0.153137]
[1744370623272,0.03254,82600.0,82599.0,0.153137]
[1744370623478,0.03254,82600.0,82599.0,0.184537]
[1744370623978,0.03244,82600.0,82599.0,0.184537]
[1744370624279,0.03244,82600.0,82588.0,0.0605763]
[1744370624280,0.1817141,82597.0,82588.0,0.0605763]
[1744370624580,0.2142072,82599.0,82598.0,0.1211385]
[1744370624785,0.1817072,82599.0,82598.0,0.1211385]
[1744370624971,0.0604688,82599.0,82598.0,0.1211385]
[1744370625572,0.0603688,82599.0,82598.0,0.1211385]
[1744370626471,0.0602688,82599.0,82598.0,0.1211385]
[1744370627085,0.0601688,82599.0,82598.0,0.1211385]
[1744370627272,0.0905688,82599.0,82598.0,0.1211385]
[1744370628081,0.0904688,82599.0,82598.0,0.1211385]
[1744370628884,0.0304,82599.0,82598.0,0.1211385]
[1744370629087,0.151537,82599.0,82598.0,0.1211385]
[1744370629586,0.151437,82599.0,82598.0,0.1211385]
[1744370630787,0.0303,82599.0,82598.0,0.1211385]
[1744370631283,0.0302,82599.0,82598.0,0.1211385]
[1744370631684,0.0302,82599.0,82598.0,0.1864385]
[1744370631978,0.0301,82599.0,82598.0,0.1864385]
[1744370632574,0.00034,82602.0,82598.0,0.1258691]
[1744370632780,0.00024,82602.0,82601.0,0.1211341]
[1744370632971,0.00014,82602.0,82601.0,0.1211341]
[1744370633174,4e-05,82602.0,82601.0,0.1857341]
[1744370633380,3.401e-05,82605.0,82604.0,0.1211297]
[1744370633777,0.57661738,82606.0,82605.0,0.1211282]
[1744370633977,0.57651738,82606.0,82605.0,0.1211282]
[1744370634176,0.21588337,82606.0,82605.0,0.1211282]
[1744370634381,0.21578337,82606.0,82605.0,0.1211282]
[1744370634585,0.21568337,82606.0,82605.0,0.1211282]
[1744370634779,0.21568337,82606.0,82580.0,0.23519417]
[1744370635083,0.0605685,82599.0,82594.0,0.0605714]
[1744370635278,0.0605694,82598.0,82597.0,0.1211396]
[1744370635582,0.0319,82598.0,82597.0,0.1211396]
[1744370635976,0.1529385,82598.0,82597.0,0.1211396]
[1744370636374,0.1211473,82592.0,82586.0,0.0605774]
[1744370636577,0.4819473,82592.0,82589.0,0.1211514]
[1744370636776,0.5142473,82592.0,82589.0,0.1211514]
[1744370637176,0.5142473,82592.0,82579.0,0.09136718]
[1744370637177,0.5142473,82592.0,82579.0,0.06106718]
[1744370637577,0.5142473,82592.0,82583.0,0.1211596]
[1744370637777,0.5142473,82592.0,82583.0,0.1211605]
[1744370639386,0.121159,82584.0,82583.0,0.09934214]
[1744370639586,0.481959,82584.0,82583.0,0.09934214]
[1744370639785,0.545659,82584.0,82583.0,0.09934214]
[1744370640701,0.1211649,82580.0,82579.0,0.00048438]
[1744370640991,0.1211986,82557.0,82556.0,0.1517001]
[1744370641182,0.1817965,82559.0,82558.0,0.1211972]
[1744370641577,0.5745965,82559.0,82558.0,0.0305]
[1744370641883,0.1212001,82556.0,82555.0,0.00048452]
[1744370642084,0.1212074,82551.0,82550.0,0.00018164]
[1744370642285,0.49120755,82551.0,82550.0,0.00018164]
[1744370642786,0.1212177,82544.0,82543.0,0.2903895]
[1744370642991,0.4820177,82544.0,82543.0,0.2903895]
[1744370643883,0.5457177,82544.0,82543.0,0.2903895]
[1744370645188,0.1212265,82538.0,82537.0,0.0606139]
[1744370646089,0.1843265,82538.0,82537.0,0.0606139]
[1744370646491,0.1842265,82538.0,82537.0,0.0606139]
[1744370647297,0.1841265,82538.0,82537.0,0.0606139]
[1744370647898,0.1840265,82538.0,82537.0,0.0606139]
[1744370648695,0.1839265,82538.0,82537.0,0.0606139]
[1744370649301,0.1838265,82538.0,82537.0,0.0606139]
[1744370650001,0.1837265,82538.0,82537.0,0.0301]
[1744370650699,0.1836265,82538.0,82537.0,0.182828]
[1744370650894,0.1508265,82538.0,82537.0,0.182828]
[1744370651098,0.0304,82538.0,82537.0,0.182828]
[1744370651304,0.0606113,82541.0,82540.0,0.1818318]
[1744370651494,0.3608,82543.0,82542.0,0.1212207]
[1744370651495,0.48202,82543.0,82542.0,0.1212207]
[1744370651894,0.48192,82543.0,82542.0,0.1212207]
[1744370652091,0.48192,82543.0,82542.0,0.1840207]
[1744370652296,0.12122,82543.0,82542.0,0.1840207]
[1744370652502,0.20385291,82549.0,82545.0,0.1212163]
[1744370652702,0.14324711,82549.0,82545.0,0.1212163]
[1744370652900,0.1212295,82536.0,82535.0,0.06079694]
[1744370653501,0.1212262,82539.0,82538.0,0.0606132]
[1744370653803,0.0606081,82545.0,82544.0,0.1818251]
[1744370654395,0.0606481,82545.0,82544.0,0.1818251]
[1744370654595,0.0606081,82545.0,82544.0,0.1818251]
[1744370654805,0.0606481,82545.0,82544.0,0.1818251]
[1744370655603,0.4214481,82545.0,82544.0,0.1818251]
[1744370656207,0.4518481,82545.0,82544.0,0.1818251]
[1744370659605,0.1212295,82536.0,82531.0,0.00048466]
[1744370659806,0.4820295,82536.0,82531.0,0.00048466]
[1744370660001,0.5735895,82536.0,82531.0,0.00048466]
[1744370660311,0.6365895,82536.0,82531.0,0.00048466]
[1744370661695,0.6364895,82536.0,82531.0,0.00048466]
[1744370662609,0.6363895,82536.0,82531.0,0.00048466]
[1744370663217,0.1212589,82516.0,82505.0,0.3608]
[1744370663412,0.1212633,82513.0,82512.0,0.0302]
[1744370663713,0.1212633,82513.0,82512.0,0.1514647]
[1744370664014,0.1211633,82513.0,82512.0,0.1514647]
[1744370664310,0.1523633,82513.0,82512.0,0.16739834]
[1744370664510,0.1522633,82513.0,82512.0,0.16739834]
[1744370665013,0.1521633,82513.0,82512.0,0.16739834]
[1744370665711,0.1520633,82513.0,82512.0,0.16739834]
[1744370665912,0.1520633,82513.0,82512.0,0.19749834]
[1744370666298,0.1519633,82513.0,82512.0,0.19749834]
[1744370666812,0.1212542,82520.0,82519.0,0.1818802]
[1744370667014,0.1211542,82520.0,82519.0,0.1818802]
[1744370667410,0.1211542,82520.0,82519.0,0.25911384]
[1744370667600,0.1543542,82520.0,82519.0,0.25911384]
[1744370668415,0.1542542,82520.0,82519.0,0.25911384]
[1744370669016,0.1541542,82520.0,82519.0,0.25911384]
[1744370669712,0.1541542,82520.0,82519.0,0.27565886]
[1744370669914,7.291e-05,82527.0,82526.0,0.1212442]
[1744370670209,0.1211331,82534.0,82533.0,0.1212339]
[1744370670405,0.1211331,82534.0,82533.0,0.1847339]
[1744370670807,0.1210331,82534.0,82533.0,0.20066754]
[1744370671009,0.1514331,82534.0,82533.0,0.20066754]
[1744370671610,0.1513331,82534.0,82533.0,0.20066754]
[1744370671913,0.1512331,82534.0,82533.0,0.20066754]
[1744370672117,0.29438021,82534.0,82533.0,0.21745321]
[1744370672613,0.29428021,82534.0,82533.0,0.21745321]
[1744370672803,0.29418021,82534.0,82533.0,0.21745321]
[1744370673009,0.29408021,82534.0,82533.0,0.21745321]
[1744370673210,0.29398021,82534.0,82533.0,0.15395321]
[1744370673419,0.32478021,82534.0,82533.0,0.15395321]
[1744370673609,0.32468021,82534.0,82533.0,0.13716754]
[1744370674113,0.32458021,82534.0,82533.0,0.01593364]
[1744370674517,0.32448021,82534.0,82533.0,0.01593364]
[1744370674718,0.32438021,82534.0,82533.0,0.01593364]
[1744370675019,0.1810331,82534.0,82533.0,0.01593364]
[1744370675218,0.1809331,82534.0,82533.0,0.13716754]
[1744370675512,0.1808331,82534.0,82533.0,0.13716754]
[1744370675717,0.1807731,82534.0,82533.0,0.13716754]
[1744370676017,0.1806731,82534.0,82533.0,0.13716754]
[1744370676217,0.1805731,82534.0,82533.0,0.13716754]
[1744370676410,0.1804731,82534.0,82533.0,0.01593364]
[1744370676609,0.1803731,82534.0,82533.0,0.13716754]
[1744370676809,0.1802731,82534.0,82533.0,0.01593364]
[1744370677218,0.1801731,82534.0,82533.0,0.01593364]
[1744370677609,0.1800731,82534.0,82533.0,0.01593364]
[1744370677910,0.1799731,82534.0,82533.0,0.01593364]
[1744370678322,0.1798731,82534.0,82533.0,0.01593364]
[1744370678921,0.1797731,82534.0,82533.0,0.01593364]
[1744370679218,0.1796731,82534.0,82533.0,0.01593364]
[1744370679519,0.1795731,82534.0,82533.0,0.01593364]
[1744370679818,0.1794731,82534.0,82533.0,0.01593364]
[1744370680018,0.1793731,82534.0,82533.0,0.01593364]
[1744370680218,0.1792731,82534.0,82533.0,0.01593364]
[1744370680524,0.1791731,82534.0,82533.0,0.01593364]
[1744370680820,0.2379256,82534.0,82533.0,0.01593364]
[1744370681117,0.2378256,82534.0,82533.0,0.01593364]
[1744370681316,0.2377256,82534.0,82533.0,0.01593364]
[1744370681518,0.2376256,82534.0,82533.0,0.01593364]
[1744370681706,0.2375256,82534.0,82533.0,0.01593364]
[1744370684919,0.3289656,82534.0,82533.0,0.01593364]
[1744370685421,0.2375256,82534.0,82533.0,0.01593364]
[1744370686017,0.2374856,82534.0,82533.0,0.01593364]
[1744370686417,0.2375256,82534.0,82533.0,0.01593364]
[1744370688010,0.3289656,82534.0,82533.0,0.01593364]
[1744370692019,0.3289256,82534.0,82533.0,0.01593364]
[1744370692423,0.3289656,82534.0,82533.0,0.01593364]
[1744370692624,0.2980656,82534.0,82533.0,0.01593364]
[1744370692823,0.2980656,82534.0,82533.0,0.13716754]
[1744370693223,0.2980656,82534.0,82533.0,0.19936754]
[1744370693618,0.2980256,82534.0,82533.0,0.19936754]
[1744370693818,0.2980656,82534.0,82533.0,0.19936754]
[1744370694029,0.2980656,82534.0,82533.0,0.1834339]
[1744370694326,0.2980656,82534.0,82533.0,0.0622]
[1744370694528,0.2980656,82534.0,82511.0,0.829633]
[1744370694529,0.0606205,82529.0,82511.0,0.829633]
[1744370694719,0.1212442,82526.0,82523.0,0.0606236]
[1744370694920,0.1212442,82526.0,82525.0,0.12142735]
[1744370695121,0.1540442,82526.0,82525.0,0.12142735]
[1744370695421,0.1540442,82526.0,82525.0,0.18362735]
[1744370695825,0.1540442,82526.0,82525.0,0.06238175]
[1744370696833,0.1540442,82526.0,82525.0,0.18362735]
[1744370697524,0.1540442,82526.0,82525.0,0.06238175]
[1744370699031,0.2129967,82526.0,82525.0,0.06238175]
[1744370699531,0.0589525,82526.0,82525.0,0.18362735]
[1744370700328,0.0589925,82526.0,82525.0,0.18362735]
[1744370700530,0.1802367,82526.0,82525.0,0.18362735]
[1744370702643,0.0589925,82526.0,82525.0,0.18362735]
[1744370702838,0.0589925,82526.0,82525.0,0.59182735]
[1744370703039,0.0589525,82526.0,82525.0,0.60786506]
[1744370703239,0.0589925,82526.0,82525.0,0.60786506]
[1744370703845,4e-05,82526.0,82525.0,0.60786506]
[1744370704047,0.1212842,82526.0,82525.0,0.60786506]
[1744370707945,4e-05,82526.0,82525.0,0.60786506]
[1744370708241,0.1212842,82526.0,82525.0,0.60786506]
[1744370708836,0.1212842,82526.0,82525.0,0.59182735]
[1744370709333,4e-05,82526.0,82525.0,0.59182735]
[1744370709644,0.00018175,82542.0,82541.0,0.1212221]
[1744370709948,9.842e-05,82553.0,82547.0,0.1212133]
[1744370710144,0.28609752,82555.0,82552.0,0.060603]
[1744370710339,7.291e-05,82567.0,82566.0,0.0605927]
[1744370710646,0.0636,82576.0,82566.0,0.0605927]
[1744370710647,0.00926213,82575.0,82567.0,0.121184]
[1744370711439,0.15175325,82576.0,82567.0,0.121184]
[1744370711644,0.03058175,82576.0,82567.0,0.121184]
[1744370712349,0.3576619,82568.0,82567.0,0.121184]
[1744370712743,0.3576219,82568.0,82567.0,0.121184]
[1744370713052,0.3576619,82568.0,82567.0,0.121184]
[1744370715857,0.3576619,82568.0,82567.0,0.529384]
[1744370716457,4e-05,82568.0,82567.0,0.529384]
[1744370716758,4e-05,82568.0,82567.0,0.890184]
[1744370726063,4e-05,82568.0,82567.0,0.920684]
[1744370729960,4e-05,82568.0,82567.0,0.953584]
[1744370733060,0.1212225,82568.0,82567.0,0.890184]
[1744370733261,0.1211942,82560.0,82552.0,0.3608]
[1744370733555,0.1211942,82560.0,82559.0,0.36098175]
[1744370733757,0.2154942,82560.0,82559.0,0.36098175]
[1744370733957,0.2154942,82560.0,82559.0,0.00018175]
[1744370734558,0.22779689,82560.0,82559.0,0.00018175]
[1744370736367,0.22779689,82560.0,82492.0,0.0182]
[1744370736368,0.1212177,82544.0,82531.0,0.65167416]
[1744370736575,0.1212265,82538.0,82532.0,0.121235]
[1744370736762,0.1212265,82538.0,82534.0,0.1212317]
[1744370736958,0.1212265,82538.0,82532.0,0.0606176]
[1744370737161,0.1866265,82538.0,82532.0,0.0606176]
[1744370737362,0.1212339,82533.0,82532.0,0.1818518]
[1744370737776,0.1212354,82532.0,82531.0,0.36128466]
[1744370737970,0.1538354,82532.0,82531.0,0.36128466]
[1744370738165,0.5146354,82532.0,82531.0,0.00048466]
[1744370738364,0.1538354,82532.0,82531.0,0.00048466]
[1744370739376,0.53535917,82532.0,82531.0,0.00048466]
[1744370739871,0.53535917,82532.0,82520.0,0.6984692]
[1744370739872,0.1212515,82521.0,82520.0,0.2164169]
[1744370740466,0.1212589,82516.0,82515.0,0.2903895]
[1744370740773,0.1212589,82516.0,82508.0,0.36054287]
[1744370740774,0.1212691,82509.0,82508.0,0.36054287]
[1744370740967,0.4820691,82509.0,82508.0,0.36054287]
[1744370742075,0.1212706,82508.0,82507.0,0.00066655]
[1744370742269,0.1212809,82501.0,82500.0,0.1]
[1744370742476,0.1213,82488.0,82487.0,0.1819438]
[1744370742674,0.1213,82488.0,82487.0,0.2425936]
[1744370743173,0.0606487,82490.0,82489.0,0.1212986]
[1744370743572,0.1212986,82489.0,82488.0,0.0316]
[1744370744974,0.4820986,82489.0,82488.0,0.0316]
[1744370745570,0.1853986,82489.0,82488.0,0.0316]
[1744370748775,0.0641,82489.0,82464.0,0.3608]
[1744370749081,0.0641,82489.0,82427.0,0.36054287]
[1744370749082,0.1213412,82460.0,82450.0,0.13156407]
[1744370749280,0.4821412,82460.0,82452.0,0.1213528]
[1744370749489,0.4821412,82460.0,82453.0,0.0327]
[1744370749685,0.4821812,82460.0,82454.0,0.0606748]
[1744370749973,0.4821812,82460.0,82455.0,0.1213476]
[1744370750180,0.4821412,82460.0,82457.0,0.1213453]
[1744370750572,0.4821412,82460.0,82459.0,0.12182779]
[1744370750776,0.3608,82460.0,82459.0,0.12182779]
[1744370750972,0.36084,82460.0,82459.0,0.12182779]
[1744370751175,0.3608,82460.0,82459.0,0.12182779]
[1744370751479,0.4821812,82460.0,82459.0,0.12182779]
[1744370752077,0.36084,82460.0,82459.0,0.12182779]
[1744370752276,0.4821812,82460.0,82459.0,0.12182779]
[1744370752478,4e-05,82460.0,82459.0,0.12182779]
[1744370752671,0.00018187,82468.0,82467.0,0.1213309]
[1744370752876,0.12151127,82468.0,82467.0,0.1213309]
[1744370753578,0.00018187,82468.0,82467.0,0.1213309]
[1744370753779,0.12151127,82468.0,82467.0,0.1213309]
[1744370754079,0.00018187,82468.0,82467.0,0.5295309]
[1744370754276,0.3608,82487.0,82473.0,0.0606605]
[1744370754483,0.4820024,82487.0,82486.0,0.121303]
[1744370754983,0.4819424,82487.0,82486.0,0.121303]
[1744370755780,0.36064,82487.0,82486.0,0.529503]
[1744370755975,0.36084,82487.0,82486.0,0.529503]
[1744370756179,0.0606464,82493.0,82492.0,0.0606463]
[1744370756780,0.1219464,82493.0,82492.0,0.0606463]
[1744370757482,0.0915464,82493.0,82492.0,0.0907463]
[1744370757683,0.0914464,82493.0,82492.0,0.0907463]
[1744370758185,0.0913464,82493.0,82492.0,0.0907463]
[1744370758782,0.0912464,82493.0,82492.0,0.0907463]
[1744370759687,0.0911464,82493.0,82492.0,0.0907463]
[1744370759987,0.0910464,82493.0,82492.0,0.1228463]
[1744370760487,0.00018187,82495.0,82494.0,0.1212912]
[1744370760685,8.187e-05,82495.0,82494.0,0.1212912]
[1744370761187,0.36078187,82499.0,82498.0,0.1212853]
[1744370761579,0.06070641,82511.0,82498.0,0.1212853]
[1744370761580,0.3608,82514.0,82505.0,0.121275]
[1744370761778,5.401e-05,82509.0,82505.0,0.121275]
[1744370761996,0.0003,82506.0,82505.0,0.121275]
[1744370762181,0.0003,82506.0,82505.0,0.118775]
[1744370762496,0.00024,82506.0,82505.0,0.180375]
[1744370762783,0.0002,82506.0,82505.0,0.180375]
[1744370762991,0.0001,82506.0,82505.0,0.180375]
[1744370763374,4e-05,82506.0,82505.0,0.180375]
[1744370763776,0.1212094,82509.0,82508.0,0.1212706]
[1744370763984,0.1212736,82506.0,82505.0,0.0312]
[1744370764287,0.1211838,82499.0,82498.0,0.4082]
[1744370764478,0.4818838,82499.0,82498.0,0.4082]
[1744370764880,0.1212853,82498.0,82497.0,0.00018187]
[1744370765096,0.1830853,82498.0,82497.0,0.00018187]
[1744370765389,0.4636853,82498.0,82497.0,7e-08]
[1744370765577,0.4635853,82498.0,82497.0,7e-08]
[1744370766391,0.4635853,82498.0,82469.0,0.28668502]
[1744370766392,0.1213265,82470.0,82469.0,0.28668502]
[1744370766574,0.4820265,82470.0,82469.0,0.30336525]
[1744370766774,0.4820265,82470.0,82469.0,0.28668502]
[1744370767084,0.4820265,82470.0,82463.0,0.0333]
[1744370767085,0.1212353,82464.0,82463.0,0.0333]
[1744370767278,0.1212353,82464.0,82463.0,0.01606299]
[1744370767279,0.4820353,82464.0,82463.0,0.01606299]
[1744370767478,0.1213412,82460.0,82455.0,0.00018187]
[1744370767779,0.1212412,82460.0,82455.0,0.00018187]
[1744370768193,0.1541412,82460.0,82455.0,0.00018187]
[1744370768388,0.5149412,82460.0,82459.0,9e-08]
[1744370768687,0.5449412,82460.0,82459.0,9e-08]
[1744370769189,0.5448412,82460.0,82459.0,9e-08]
[1744370769593,0.5447412,82460.0,82459.0,9e-08]
[1744370769990,0.4815412,82460.0,82459.0,9e-08]
[1744370770284,0.4815812,82460.0,82459.0,9e-08]
[1744370770484,0.4814812,82460.0,82459.0,9e-08]
[1744370770690,0.4814412,82460.0,82459.0,9e-08]
[1744370770886,0.4814812,82460.0,82459.0,9e-08]
[1744370773182,0.4814812,82460.0,82459.0,0.12134279]
[1744370773387,0.4814812,82460.0,82459.0,9e-08]
[1744370773588,0.4821412,82460.0,82459.0,0.13768435]
[1744370773893,0.4820812,82460.0,82459.0,0.13768435]
[1744370774584,0.4819812,82460.0,82459.0,0.13768435]
[1744370774985,0.4818812,82460.0,82459.0,0.13768435]
[1744370775496,0.4817812,82460.0,82459.0,0.13768435]
[1744370775895,0.4816812,82460.0,82459.0,0.13768435]
[1744370776396,0.4815812,82460.0,82459.0,0.13768435]
[1744370776687,0.4814812,82460.0,82459.0,0.08538435]
[1744370777395,0.4813812,82460.0,82459.0,0.08538435]
[1744370777695,0.4812812,82460.0,82459.0,0.08538435]
[1744370778492,0.4811812,82460.0,82459.0,0.11588435]
[1744370778794,0.4810812,82460.0,82459.0,0.11588435]
[1744370778990,0.5135812,82460.0,82459.0,0.01634156]
[1744370779191,0.5458812,82460.0,82459.0,0.01634156]
[1744370779386,0.5763812,82460.0,82459.0,0.01634156]
[1744370779694,0.5763812,82460.0,82456.0,0.031]
[1744370779695,0.1212456,82457.0,82456.0,0.031]
[1744370779897,0.1212456,82457.0,82456.0,0.16940713]
[1744370780095,0.1852456,82457.0,82456.0,0.16940713]
[1744370780302,0.1852456,82457.0,82456.0,0.1523471]
[1744370780991,0.1851456,82457.0,82456.0,0.1213471]
[1744370781195,0.1213765,82436.0,82435.0,0.00048523]
[1744370781489,0.09104,82447.0,82446.0,0.1213618]
[1744370781692,0.3608,82447.0,82446.0,0.1854618]
[1744370781898,0.3607,82447.0,82446.0,0.23232276]
[1744370782093,0.3607,82447.0,82446.0,0.24844943]
[1744370782293,0.36074,82447.0,82446.0,0.24844943]
[1744370782489,0.36064,82447.0,82446.0,0.16848847]
[1744370782688,0.36064,82447.0,82446.0,0.18484689]
[1744370782888,0.4820003,82447.0,82446.0,0.18484689]
[1744370783100,0.4819003,82447.0,82446.0,0.19868847]
[1744370783487,0.36044,82447.0,82446.0,0.19868847]
[1744370783693,0.4818003,82447.0,82446.0,0.21509266]
[1744370784000,0.36034,82447.0,82446.0,0.21509266]
[1744370784494,0.36024,82447.0,82446.0,0.21509266]
[1744370784892,0.36024,82447.0,82446.0,0.19868847]
[1744370784893,0.36014,82447.0,82446.0,0.19868847]
[1744370785191,0.36014,82447.0,82446.0,0.21513349]
[1744370785395,0.36004,82447.0,82446.0,0.21513349]
[1744370785801,0.35994,82447.0,82446.0,0.21513349]
[1744370785998,0.3599,82447.0,82446.0,0.21513349]
[1744370786192,0.3598,82447.0,82446.0,0.21513349]
[1744370786394,0.35984,82447.0,82446.0,0.62333349]
[1744370786594,0.35984,82447.0,82446.0,0.59313349]
[1744370786794,0.35984,82447.0,82446.0,0.62483349]
[1744370787002,0.35974,82447.0,82446.0,0.62483349]
[1744370787198,0.4811003,82447.0,82446.0,0.59332927]
[1744370787589,0.5442003,82447.0,82446.0,0.59332927]
[1744370788197,0.35954,82447.0,82446.0,0.59332927]
[1744370788397,0.35954,82447.0,82446.0,0.62502927]
[1744370788598,0.35944,82447.0,82446.0,0.62510979]
[1744370788801,9.842e-05,82467.0,82466.0,0.1213324]
[1744370789099,9.842e-05,82467.0,82466.0,0.15418039]
[1744370789307,0.10736321,82470.0,82469.0,0.121328]
[1744370789500,0.10726321,82470.0,82469.0,0.13804932]
[1744370789704,0.14315094,82474.0,82473.0,0.1213221]
[1744370790096,0.14315094,82474.0,82473.0,0.19914877]
[1744370790297,0.14305094,82474.0,82473.0,0.19914877]
[1744370790496,0.14295094,82474.0,82473.0,0.19914877]
[1744370791199,0.14285094,82474.0,82473.0,0.19914877]
[1744370791399,0.14275094,82474.0,82473.0,0.19914877]
[1744370791605,0.14265094,82474.0,82473.0,0.19914877]
[1744370791906,0.14255094,82474.0,82473.0,0.19914877]
[1744370792309,0.14245094,82474.0,82473.0,0.17714877]
[1744370792604,0.14235094,82474.0,82473.0,0.17714877]
[1744370792801,0.14225094,82474.0,82473.0,0.17714877]
[1744370793303,0.14215094,82474.0,82473.0,0.17714877]
[1744370793704,0.3608,82478.0,82477.0,0.1213162]
[1744370793903,0.3607,82478.0,82477.0,0.1213162]
[1744370794107,0.3607,82478.0,82477.0,0.1876162]